[Event "Titled Tuesday Blitz May 31 Early 2022"]
[White "Agasarov, Benik"]
[Black "Vasquez Schroeder, Rodrigo"]
[WhiteFideId "13314823"]
[BlackFideId "3400042"]
[WhiteElo "2620"]
[BlackElo "2567"]
[Result "0-1"]
[Round "10"]
[TimeControl "180+1"]
[Date "2022.05.31"]
[WhiteClock "0:00:04"]
[BlackClock "0:00:50"]

1. d4 {[%clk 0:03:00]}  Nf6 {[%clk 0:02:58]} 2. c4 {[%clk 0:02:57]}  g6 {[%clk 0:02:57]} 3. Nc3 {[%clk 0:02:57]}  Bg7 {[%clk 0:02:58]} 4. e4 {[%clk 0:02:57]}  d6 {[%clk 0:02:59]} 5. Nf3 {[%clk 0:02:55]}  O-O {[%clk 0:02:59]} 6. h3 {[%clk 0:02:56]}  e5 {[%clk 0:02:55]} 7. d5 {[%clk 0:02:55]}  Nh5 {[%clk 0:02:55]} 8. g3 {[%clk 0:02:53]}  a5 {[%clk 0:02:46]} 9. Be3 {[%clk 0:02:48]}  Na6 {[%clk 0:02:45]} 10. Nd2 {[%clk 0:02:43]}  Qe8 {[%clk 0:02:44]} 11. Be2 {[%clk 0:02:42]}  Nf6 {[%clk 0:02:34]} 12. a3 {[%clk 0:02:41]}  Bd7 {[%clk 0:02:33]} 13. Qc2 {[%clk 0:02:40]}  Nc5 {[%clk 0:02:27]} 14. h4 {[%clk 0:02:36]}  h5 {[%clk 0:02:26]} 15. b3 {[%clk 0:02:28]}  Ng4 {[%clk 0:02:24]} 16. Bxc5 {[%clk 0:02:16]}  dxc5 {[%clk 0:02:22]} 17. Bxg4 {[%clk 0:02:09]}  hxg4 {[%clk 0:02:18]} 18. h5 {[%clk 0:02:08]}  f5 {[%clk 0:02:18]} 19. O-O-O {[%clk 0:01:59]}  f4 {[%clk 0:02:08]} 20. Rh2 {[%clk 0:01:55]}  g5 {[%clk 0:02:00]} 21. h6 {[%clk 0:01:53]}  Bf6 {[%clk 0:02:00]} 22. Rdh1 {[%clk 0:01:52]}  Kh8 {[%clk 0:02:00]} 23. h7 {[%clk 0:01:50]}  Be7 {[%clk 0:01:57]} 24. a4 {[%clk 0:01:48]}  c6 {[%clk 0:01:55]} 25. Rh6 {[%clk 0:01:45]}  Rf6 {[%clk 0:01:55]} 26. R6h5 {[%clk 0:01:38]}  Rg6 {[%clk 0:01:52]} 27. Qd3 {[%clk 0:01:38]}  Bd6 {[%clk 0:01:50]} 28. dxc6 {[%clk 0:01:34]}  bxc6 {[%clk 0:01:50]} 29. Rh6 {[%clk 0:01:34]}  Qe6 {[%clk 0:01:47]} 30. Rxg6 {[%clk 0:01:28]}  Qxg6 {[%clk 0:01:48]} 31. Kc2 {[%clk 0:01:16]}  Rd8 {[%clk 0:01:43]} 32. Rd1 {[%clk 0:00:41]}  Be7 {[%clk 0:01:39]} 33. Qe2 {[%clk 0:00:17]}  Kxh7 {[%clk 0:01:36]} 34. Kb2 {[%clk 0:00:14]}  Be6 {[%clk 0:01:35]} 35. Nf1 {[%clk 0:00:14]}  Rd4 {[%clk 0:01:33]} 36. Nh2 {[%clk 0:00:13]}  Qh5 {[%clk 0:01:31]} 37. Rh1 {[%clk 0:00:13]}  Kg7 {[%clk 0:01:29]} 38. Qe1 {[%clk 0:00:11]}  Qg6 {[%clk 0:01:27]} 39. Nf1 {[%clk 0:00:10]}  Bd8 {[%clk 0:01:22]} 40. Qe2 {[%clk 0:00:09]}  Qf7 {[%clk 0:01:19]} 41. Nh2 {[%clk 0:00:09]}  Qd7 {[%clk 0:01:19]} 42. Rd1 {[%clk 0:00:08]}  Kg6 {[%clk 0:01:17]} 43. Nf1 {[%clk 0:00:07]}  Qb7 {[%clk 0:01:08]} 44. Nh2 {[%clk 0:00:04]}  Bxc4 {[%clk 0:01:06]} 45. Qc2 {[%clk 0:00:03]}  Be6 {[%clk 0:01:03]} 46. Ne2 {[%clk 0:00:03]}  Bxb3 {[%clk 0:00:59]} 47. Qxb3 {[%clk 0:00:01]}  Qxb3+ {[%clk 0:00:58]} 48. Kxb3 {[%clk 0:00:02]}  Rxd1 {[%clk 0:00:58]} 49. Nxg4 {[%clk 0:00:02]}  Bc7 {[%clk 0:00:57]} 50. Kc4 {[%clk 0:00:02]}  Rd2 {[%clk 0:00:52]} 51. Ng1 {[%clk 0:00:03]}  fxg3 {[%clk 0:00:51]} 52. fxg3 {[%clk 0:00:03]}  Rd4+ {[%clk 0:00:51]} 53. Kc3 {[%clk 0:00:03]}  Rxe4 {[%clk 0:00:51]} 54. Nf2 {[%clk 0:00:04]}  Rxa4 {[%clk 0:00:51]} 55. Nf3 {[%clk 0:00:03]}  e4 {[%clk 0:00:51]} 56. Nd2 {[%clk 0:00:03]}  Be5+ {[%clk 0:00:51]} 57. Kb3 {[%clk 0:00:03]}  Rb4+ {[%clk 0:00:51]} 58. Ka3 {[%clk 0:00:04]}  e3 {[%clk 0:00:51]} 59. Nd3 {[%clk 0:00:03]}  exd2 {[%clk 0:00:51]} 60. Nf4+ {[%clk 0:00:03]}  gxf4 {[%clk 0:00:51]} 61. gxf4 {[%clk 0:00:04]}  d1=Q {[%clk 0:00:51]} 62. f5+ {[%clk 0:00:04]}  Kf7 {[%clk 0:00:50]} 63. f6 {[%clk 0:00:04]}  Qb3# {[%clk 0:00:50]} 0-1


[Site "https://www.chess.com"]

[Event "Titled Tuesday Blitz May 31 Early 2022"]
[White "Al-Tarboush, Ward"]
[Black "Bluebaum, Matthias"]
[WhiteFideId "7601450"]
[BlackFideId "24651516"]
[WhiteElo "2294"]
[BlackElo "2556"]
[Result "0-1"]
[Round "10"]
[TimeControl "180+1"]
[Date "2022.05.31"]
[WhiteClock "0:00:02"]
[BlackClock "0:00:13"]

1. e4 {[%clk 0:02:46]}  e5 {[%clk 0:02:59]} 2. Nf3 {[%clk 0:02:46]}  Nf6 {[%clk 0:02:58]} 3. Nxe5 {[%clk 0:02:44]}  d6 {[%clk 0:02:58]} 4. Nf3 {[%clk 0:02:44]}  Nxe4 {[%clk 0:02:58]} 5. d4 {[%clk 0:02:44]}  d5 {[%clk 0:02:59]} 6. Bd3 {[%clk 0:02:44]}  Bd6 {[%clk 0:03:00]} 7. O-O {[%clk 0:02:42]}  O-O {[%clk 0:03:00]} 8. c4 {[%clk 0:02:42]}  c6 {[%clk 0:03:01]} 9. Qc2 {[%clk 0:02:41]}  h6 {[%clk 0:03:00]} 10. Bxe4 {[%clk 0:02:38]}  dxe4 {[%clk 0:03:01]} 11. Qxe4 {[%clk 0:02:38]}  Re8 {[%clk 0:02:50]} 12. Qd3 {[%clk 0:02:37]}  Bg4 {[%clk 0:02:48]} 13. Nc3 {[%clk 0:02:37]}  Nd7 {[%clk 0:02:48]} 14. h3 {[%clk 0:02:35]}  Bh5 {[%clk 0:02:48]} 15. Nd2 {[%clk 0:02:08]}  Nc5 {[%clk 0:02:36]} 16. Qc2 {[%clk 0:01:58]}  Ne6 {[%clk 0:02:36]} 17. Nb3 {[%clk 0:01:51]}  Bc7 {[%clk 0:02:35]} 18. Be3 {[%clk 0:01:44]}  Qd6 {[%clk 0:02:14]} 19. f4 {[%clk 0:01:33]}  Qb4 {[%clk 0:02:02]} 20. Qf2 {[%clk 0:01:30]}  f5 {[%clk 0:01:56]} 21. c5 {[%clk 0:01:26]}  Rad8 {[%clk 0:01:53]} 22. Rae1 {[%clk 0:01:09]}  a5 {[%clk 0:01:48]} 23. d5 {[%clk 0:00:24]}  cxd5 {[%clk 0:01:47]} 24. Nd4 {[%clk 0:00:24]}  Nxc5 {[%clk 0:01:36]} 25. a3 {[%clk 0:00:24]}  Qc4 {[%clk 0:01:34]} 26. Nxf5 {[%clk 0:00:24]}  Ne6 {[%clk 0:01:05]} 27. Qh4 {[%clk 0:00:24]}  Bf7 {[%clk 0:01:00]} 28. Nxh6+ {[%clk 0:00:24]}  gxh6 {[%clk 0:01:00]} 29. Qxh6 {[%clk 0:00:25]}  d4 {[%clk 0:00:55]} 30. Rf3 {[%clk 0:00:25]}  Nf8 {[%clk 0:00:25]} 31. Rg3+ {[%clk 0:00:19]}  Bg6 {[%clk 0:00:25]} 32. Rxg6+ {[%clk 0:00:18]}  Nxg6 {[%clk 0:00:26]} 33. Qxg6+ {[%clk 0:00:19]}  Kf8 {[%clk 0:00:27]} 34. Qf6+ {[%clk 0:00:16]}  Qf7 {[%clk 0:00:17]} 35. Qh8+ {[%clk 0:00:16]}  Ke7 {[%clk 0:00:18]} 36. Bxd4+ {[%clk 0:00:07]}  Kd7 {[%clk 0:00:18]} 37. Rxe8 {[%clk 0:00:08]}  Rxe8 {[%clk 0:00:19]} 38. Qh4 {[%clk 0:00:05]}  Qxf4 {[%clk 0:00:19]} 39. Qxf4 {[%clk 0:00:04]}  Bxf4 {[%clk 0:00:19]} 40. Nd5 {[%clk 0:00:04]}  Be5 {[%clk 0:00:15]} 41. Nb6+ {[%clk 0:00:01]}  Kc6 {[%clk 0:00:14]} 42. Bf2 {[%clk 0:00:02]}  Bc7 {[%clk 0:00:13]} 43. Nc4 {[%clk 0:00:03]}  b5 {[%clk 0:00:12]} 44. Nd2 {[%clk 0:00:03]}  Re2 {[%clk 0:00:12]} 45. Nf3 {[%clk 0:00:02]}  Rxb2 {[%clk 0:00:12]} 46. Nd4+ {[%clk 0:00:02]}  Kd5 {[%clk 0:00:13]} 47. Nf3 {[%clk 0:00:01]}  Rb1+ {[%clk 0:00:13]} 48. Be1 {[%clk 0:00:01]}  Bg3 {[%clk 0:00:13]} 49. h4 {[%clk 0:00:02]}  Bxe1 {[%clk 0:00:13]} 0-1


[Site "https://www.chess.com"]

[Event "Titled Tuesday Blitz May 31 Early 2022"]
[White "Aradhya, Garg"]
[Black "Manukian, Artak"]
[WhiteFideId "25006746"]
[BlackFideId "13301373"]
[WhiteElo "2169"]
[BlackElo "2545"]
[Result "0-1"]
[Round "10"]
[TimeControl "180+1"]
[Date "2022.06.01"]
[WhiteClock "0:00:38"]
[BlackClock "0:00:21"]

1. d4 {[%clk 0:02:56]}  d5 {[%clk 0:02:47]} 2. c4 {[%clk 0:02:56]}  dxc4 {[%clk 0:02:47]} 3. e4 {[%clk 0:02:56]}  e5 {[%clk 0:02:47]} 4. Nf3 {[%clk 0:02:56]}  exd4 {[%clk 0:02:47]} 5. Bxc4 {[%clk 0:02:56]}  Bb4+ {[%clk 0:02:45]} 6. Bd2 {[%clk 0:02:56]}  Bxd2+ {[%clk 0:02:44]} 7. Nbxd2 {[%clk 0:02:56]}  Nf6 {[%clk 0:02:32]} 8. O-O {[%clk 0:02:56]}  O-O {[%clk 0:02:30]} 9. Rc1 {[%clk 0:02:55]}  Nc6 {[%clk 0:02:24]} 10. Re1 {[%clk 0:02:45]}  Bg4 {[%clk 0:02:21]} 11. h3 {[%clk 0:02:45]}  Bh5 {[%clk 0:02:21]} 12. e5 {[%clk 0:02:44]}  Nd5 {[%clk 0:02:07]} 13. e6 {[%clk 0:02:37]}  fxe6 {[%clk 0:02:04]} 14. Rxe6 {[%clk 0:02:37]}  Kh8 {[%clk 0:01:59]} 15. Re1 {[%clk 0:01:30]}  Nf4 {[%clk 0:01:43]} 16. Bf1 {[%clk 0:01:27]}  d3 {[%clk 0:01:38]} 17. Rc4 {[%clk 0:01:24]}  Qf6 {[%clk 0:01:32]} 18. b4 {[%clk 0:00:59]}  b5 {[%clk 0:01:20]} 19. Rce4 {[%clk 0:00:56]}  Rad8 {[%clk 0:01:14]} 20. Qa1 {[%clk 0:00:55]}  Qxa1 {[%clk 0:01:07]} 21. Rxa1 {[%clk 0:00:56]}  Bg6 {[%clk 0:01:08]} 22. Re3 {[%clk 0:00:48]}  Nd5 {[%clk 0:01:04]} 23. Re6 {[%clk 0:00:48]}  Ncxb4 {[%clk 0:00:59]} 24. Ne5 {[%clk 0:00:47]}  Bf5 {[%clk 0:00:51]} 25. Nf7+ {[%clk 0:00:47]}  Rxf7 {[%clk 0:00:47]} 26. Re5 {[%clk 0:00:48]}  Bg6 {[%clk 0:00:40]} 27. a4 {[%clk 0:00:46]}  Nc2 {[%clk 0:00:38]} 28. Rb1 {[%clk 0:00:45]}  Nc3 {[%clk 0:00:38]} 29. Rb3 {[%clk 0:00:44]}  Ne2+ {[%clk 0:00:37]} 30. Bxe2 {[%clk 0:00:44]}  dxe2 {[%clk 0:00:37]} 31. Rxe2 {[%clk 0:00:43]}  Nd4 {[%clk 0:00:37]} 32. Re5 {[%clk 0:00:40]}  Nxb3 {[%clk 0:00:36]} 33. Nxb3 {[%clk 0:00:41]}  bxa4 {[%clk 0:00:35]} 34. Nc5 {[%clk 0:00:41]}  a3 {[%clk 0:00:35]} 35. Re1 {[%clk 0:00:42]}  Rf5 {[%clk 0:00:29]} 36. Ra1 {[%clk 0:00:41]}  Rxc5 {[%clk 0:00:29]} 37. Rxa3 {[%clk 0:00:42]}  a5 {[%clk 0:00:29]} 38. g4 {[%clk 0:00:40]}  h5 {[%clk 0:00:30]} 39. Kg2 {[%clk 0:00:40]}  hxg4 {[%clk 0:00:30]} 40. hxg4 {[%clk 0:00:40]}  Rd3 {[%clk 0:00:30]} 41. Ra4 {[%clk 0:00:40]}  Rdc3 {[%clk 0:00:29]} 42. Rd4 {[%clk 0:00:39]}  R3c4 {[%clk 0:00:29]} 43. Rd8+ {[%clk 0:00:39]}  Kh7 {[%clk 0:00:29]} 44. Kg3 {[%clk 0:00:40]}  a4 {[%clk 0:00:29]} 45. f4 {[%clk 0:00:40]}  a3 {[%clk 0:00:28]} 46. Ra8 {[%clk 0:00:40]}  Rc3+ {[%clk 0:00:27]} 47. Kh4 {[%clk 0:00:40]}  Be4 {[%clk 0:00:24]} 48. f5 {[%clk 0:00:40]}  Bxa8 {[%clk 0:00:23]} 49. f6 {[%clk 0:00:38]}  gxf6 {[%clk 0:00:23]} 50. g5 {[%clk 0:00:38]}  R5c4+ {[%clk 0:00:21]} 51. Kh5 {[%clk 0:00:38]}  Bf3# {[%clk 0:00:21]} 0-1


[Site "https://www.chess.com"]

[Event "Titled Tuesday Blitz May 31 Early 2022"]
[White "Aravindh, Chithambaram VR."]
[Black "Maltsevskaya, Aleksandra"]
[WhiteFideId "5072786"]
[BlackFideId "24174041"]
[WhiteElo "2561"]
[BlackElo "2235"]
[Result "1-0"]
[Round "10"]
[TimeControl "180+1"]
[Date "2022.05.31"]
[WhiteClock "0:00:15"]
[BlackClock "0:00:02"]

1. Nf3 {[%clk 0:02:59]}  d5 {[%clk 0:02:52]} 2. d3 {[%clk 0:02:58]}  c6 {[%clk 0:02:52]} 3. g3 {[%clk 0:02:58]}  Bg4 {[%clk 0:02:52]} 4. Bg2 {[%clk 0:02:58]}  Nd7 {[%clk 0:02:52]} 5. O-O {[%clk 0:02:57]}  e6 {[%clk 0:02:52]} 6. e4 {[%clk 0:02:57]}  Ngf6 {[%clk 0:02:48]} 7. Qe1 {[%clk 0:02:57]}  Qc7 {[%clk 0:02:41]} 8. Nbd2 {[%clk 0:02:53]}  a5 {[%clk 0:02:37]} 9. e5 {[%clk 0:02:52]}  Ng8 {[%clk 0:02:34]} 10. a4 {[%clk 0:02:44]}  Ne7 {[%clk 0:02:33]} 11. d4 {[%clk 0:02:43]}  c5 {[%clk 0:02:30]} 12. c4 {[%clk 0:02:42]}  dxc4 {[%clk 0:02:26]} 13. Nxc4 {[%clk 0:02:42]}  Nd5 {[%clk 0:02:25]} 14. b3 {[%clk 0:02:26]}  Be7 {[%clk 0:02:02]} 15. Ba3 {[%clk 0:02:00]}  O-O {[%clk 0:02:00]} 16. Rc1 {[%clk 0:02:00]}  cxd4 {[%clk 0:01:45]} 17. Bxe7 {[%clk 0:01:37]}  Nxe7 {[%clk 0:01:46]} 18. Nxd4 {[%clk 0:01:38]}  Qd8 {[%clk 0:01:08]} 19. Bxb7 {[%clk 0:01:32]}  Rb8 {[%clk 0:01:07]} 20. Nxa5 {[%clk 0:01:32]}  Bh3 {[%clk 0:01:00]} 21. Ndc6 {[%clk 0:01:28]}  Nxc6 {[%clk 0:00:57]} 22. Nxc6 {[%clk 0:01:29]}  Qb6 {[%clk 0:00:57]} 23. Nxb8 {[%clk 0:01:29]}  Qxb7 {[%clk 0:00:57]} 24. Nc6 {[%clk 0:01:28]}  Qxb3 {[%clk 0:00:54]} 25. Qd1 {[%clk 0:01:20]}  Qa3 {[%clk 0:00:44]} 26. Re1 {[%clk 0:01:12]}  Nb6 {[%clk 0:00:37]} 27. Re3 {[%clk 0:00:38]}  Qa2 {[%clk 0:00:23]} 28. Qh5 {[%clk 0:00:34]}  Bf5 {[%clk 0:00:04]} 29. Ne7+ {[%clk 0:00:31]}  Kh8 {[%clk 0:00:04]} 30. Nxf5 {[%clk 0:00:31]}  exf5 {[%clk 0:00:05]} 31. Qxf5 {[%clk 0:00:32]}  Qxa4 {[%clk 0:00:03]} 32. e6 {[%clk 0:00:31]}  Kg8 {[%clk 0:00:02]} 33. Rce1 {[%clk 0:00:16]}  Nc4 {[%clk 0:00:01]} 34. exf7+ {[%clk 0:00:14]}  Kh8 {[%clk 0:00:02]} 35. Re8 {[%clk 0:00:15]} 1-0


[Site "https://www.chess.com"]

[Event "Titled Tuesday Blitz May 31 Early 2022"]
[White "Barria Zuniga, Daniel"]
[Black "Costachi, Mihnea"]
[WhiteFideId "3400816"]
[BlackFideId "1217518"]
[WhiteElo "2414"]
[BlackElo "2476"]
[Result "1/2-1/2"]
[Round "10"]
[TimeControl "180+1"]
[Date "2022.05.31"]
[WhiteClock "0:00:05"]
[BlackClock "0:00:17"]

1. d4 {[%clk 0:03:00]}  d5 {[%clk 0:02:58]} 2. c4 {[%clk 0:02:59]}  c6 {[%clk 0:02:59]} 3. Nf3 {[%clk 0:02:59]}  Nf6 {[%clk 0:02:59]} 4. Nc3 {[%clk 0:02:59]}  a6 {[%clk 0:02:59]} 5. cxd5 {[%clk 0:02:58]}  cxd5 {[%clk 0:02:59]} 6. Bf4 {[%clk 0:02:57]}  Nc6 {[%clk 0:02:58]} 7. Rc1 {[%clk 0:02:55]}  e6 {[%clk 0:02:57]} 8. e3 {[%clk 0:02:54]}  Be7 {[%clk 0:02:57]} 9. Bd3 {[%clk 0:02:55]}  O-O {[%clk 0:02:58]} 10. O-O {[%clk 0:02:55]}  Nh5 {[%clk 0:02:58]} 11. Be5 {[%clk 0:02:53]}  f6 {[%clk 0:02:55]} 12. Bg3 {[%clk 0:02:53]}  Nxg3 {[%clk 0:02:54]} 13. hxg3 {[%clk 0:02:53]}  Bd7 {[%clk 0:02:54]} 14. Na4 {[%clk 0:02:39]}  Qa5 {[%clk 0:02:44]} 15. Nc5 {[%clk 0:02:32]}  Bxc5 {[%clk 0:02:44]} 16. Rxc5 {[%clk 0:02:32]}  Qxa2 {[%clk 0:02:34]} 17. Qd2 {[%clk 0:02:31]}  Qb3 {[%clk 0:02:31]} 18. Rfc1 {[%clk 0:02:27]}  Rfc8 {[%clk 0:02:17]} 19. R1c3 {[%clk 0:02:27]}  Qb4 {[%clk 0:02:13]} 20. Qc2 {[%clk 0:02:26]}  f5 {[%clk 0:02:08]} 21. Rb3 {[%clk 0:02:25]}  Qa5 {[%clk 0:02:02]} 22. Rxb7 {[%clk 0:02:24]}  Qd8 {[%clk 0:01:46]} 23. Ne5 {[%clk 0:02:05]}  Nxe5 {[%clk 0:01:44]} 24. dxe5 {[%clk 0:02:06]}  Rxc5 {[%clk 0:01:26]} 25. Qxc5 {[%clk 0:02:07]}  Be8 {[%clk 0:01:18]} 26. b4 {[%clk 0:01:53]}  Rc8 {[%clk 0:01:18]} 27. Qe7 {[%clk 0:01:50]}  Qxe7 {[%clk 0:01:12]} 28. Rxe7 {[%clk 0:01:51]}  Rc1+ {[%clk 0:00:55]} 29. Kh2 {[%clk 0:01:50]}  Bb5 {[%clk 0:00:56]} 30. Bxb5 {[%clk 0:01:46]}  axb5 {[%clk 0:00:57]} 31. Rxe6 {[%clk 0:01:46]}  Rb1 {[%clk 0:00:57]} 32. Rd6 {[%clk 0:01:41]}  Rxb4 {[%clk 0:00:56]} 33. Rxd5 {[%clk 0:01:36]}  Rb2 {[%clk 0:00:57]} 34. e6 {[%clk 0:01:27]}  Kf8 {[%clk 0:00:52]} 35. Rxf5+ {[%clk 0:01:17]}  Ke7 {[%clk 0:00:52]} 36. f4 {[%clk 0:01:10]}  Kxe6 {[%clk 0:00:51]} 37. Rg5 {[%clk 0:01:05]}  g6 {[%clk 0:00:48]} 38. e4 {[%clk 0:01:04]}  b4 {[%clk 0:00:49]} 39. Rb5 {[%clk 0:01:04]}  b3 {[%clk 0:00:48]} 40. g4 {[%clk 0:01:01]}  Re2 {[%clk 0:00:41]} 41. Rxb3 {[%clk 0:00:50]}  Rxe4 {[%clk 0:00:41]} 42. Kg3 {[%clk 0:00:50]}  h6 {[%clk 0:00:34]} 43. Rb6+ {[%clk 0:00:46]}  Kf7 {[%clk 0:00:34]} 44. f5 {[%clk 0:00:42]}  gxf5 {[%clk 0:00:30]} 45. gxf5 {[%clk 0:00:43]}  Kg7 {[%clk 0:00:27]} 46. Kf3 {[%clk 0:00:41]}  Ra4 {[%clk 0:00:26]} 47. g4 {[%clk 0:00:40]}  Rc4 {[%clk 0:00:26]} 48. Kg3 {[%clk 0:00:40]}  Rd4 {[%clk 0:00:24]} 49. Kh4 {[%clk 0:00:38]}  Rd1 {[%clk 0:00:24]} 50. Rg6+ {[%clk 0:00:30]}  Kh7 {[%clk 0:00:24]} 51. Kg3 {[%clk 0:00:29]}  Rd4 {[%clk 0:00:23]} 52. Kf3 {[%clk 0:00:28]}  Ra4 {[%clk 0:00:23]} 53. Re6 {[%clk 0:00:27]}  Kg7 {[%clk 0:00:23]} 54. Re4 {[%clk 0:00:27]}  Ra1 {[%clk 0:00:23]} 55. Kf4 {[%clk 0:00:27]}  Rf1+ {[%clk 0:00:21]} 56. Ke5 {[%clk 0:00:26]}  Kf7 {[%clk 0:00:22]} 57. Rb4 {[%clk 0:00:20]}  Re1+ {[%clk 0:00:22]} 58. Re4 {[%clk 0:00:18]}  Ra1 {[%clk 0:00:20]} 59. Rb4 {[%clk 0:00:16]}  Rg1 {[%clk 0:00:20]} 60. Rb7+ {[%clk 0:00:14]}  Kg8 {[%clk 0:00:20]} 61. Kf6 {[%clk 0:00:08]}  Rxg4 {[%clk 0:00:20]} 62. Rb8+ {[%clk 0:00:08]}  Kh7 {[%clk 0:00:20]} 63. Rb7+ {[%clk 0:00:07]}  Kg8 {[%clk 0:00:19]} 64. Rb8+ {[%clk 0:00:07]}  Kh7 {[%clk 0:00:19]} 65. Rb7+ {[%clk 0:00:05]}  Kg8 {[%clk 0:00:17]} 1/2-1/2


[Site "https://www.chess.com"]

[Event "Titled Tuesday Blitz May 31 Early 2022"]
[White "Bodnaruk, Anastasia"]
[Black "Csonka, Balazs"]
[WhiteFideId "4181751"]
[BlackFideId "742910"]
[WhiteElo "2332"]
[BlackElo "2404"]
[Result "0-1"]
[Round "10"]
[TimeControl "180+1"]
[Date "2022.05.31"]
[WhiteClock "0:00:06"]
[BlackClock "0:00:09"]

1. e4 {[%clk 0:03:00]}  c6 {[%clk 0:02:55]} 2. d4 {[%clk 0:03:00]}  d5 {[%clk 0:02:56]} 3. e5 {[%clk 0:03:01]}  c5 {[%clk 0:02:54]} 4. c3 {[%clk 0:02:59]}  Nc6 {[%clk 0:02:51]} 5. Be2 {[%clk 0:02:59]}  Bf5 {[%clk 0:02:41]} 6. Nf3 {[%clk 0:02:59]}  e6 {[%clk 0:02:32]} 7. O-O {[%clk 0:02:58]}  cxd4 {[%clk 0:02:28]} 8. cxd4 {[%clk 0:02:53]}  Nge7 {[%clk 0:02:28]} 9. a3 {[%clk 0:02:53]}  Bg4 {[%clk 0:02:25]} 10. Nbd2 {[%clk 0:02:44]}  Nf5 {[%clk 0:02:14]} 11. h3 {[%clk 0:02:43]}  Bxf3 {[%clk 0:02:12]} 12. Nxf3 {[%clk 0:02:44]}  Qb6 {[%clk 0:02:01]} 13. b4 {[%clk 0:02:28]}  Nfxd4 {[%clk 0:01:43]} 14. Be3 {[%clk 0:01:41]}  Nxf3+ {[%clk 0:01:39]} 15. Bxf3 {[%clk 0:01:41]}  Qd8 {[%clk 0:01:40]} 16. Bf4 {[%clk 0:01:20]}  Be7 {[%clk 0:01:31]} 17. Be2 {[%clk 0:01:18]}  O-O {[%clk 0:01:26]} 18. b5 {[%clk 0:01:18]}  Na5 {[%clk 0:01:23]} 19. Bd3 {[%clk 0:01:18]}  Rc8 {[%clk 0:01:22]} 20. Qg4 {[%clk 0:01:04]}  Re8 {[%clk 0:00:59]} 21. Bh6 {[%clk 0:00:54]}  g6 {[%clk 0:00:49]} 22. f4 {[%clk 0:00:45]}  Nc4 {[%clk 0:00:48]} 23. Rae1 {[%clk 0:00:42]}  Bc5+ {[%clk 0:00:42]} 24. Kh1 {[%clk 0:00:41]}  Ne3 {[%clk 0:00:40]} 25. Rxe3 {[%clk 0:00:40]}  Bxe3 {[%clk 0:00:41]} 26. Bg5 {[%clk 0:00:40]}  Qc7 {[%clk 0:00:35]} 27. Bf6 {[%clk 0:00:40]}  Qc3 {[%clk 0:00:29]} 28. Bb1 {[%clk 0:00:31]}  Qc4 {[%clk 0:00:24]} 29. Re1 {[%clk 0:00:30]}  Qxf4 {[%clk 0:00:22]} 30. Qe2 {[%clk 0:00:21]}  Rc1 {[%clk 0:00:21]} 31. Rxc1 {[%clk 0:00:15]}  Bxc1 {[%clk 0:00:22]} 32. Qc2 {[%clk 0:00:14]}  Be3 {[%clk 0:00:18]} 33. Qe2 {[%clk 0:00:10]}  Rc8 {[%clk 0:00:16]} 34. Bc2 {[%clk 0:00:10]}  b6 {[%clk 0:00:12]} 35. a4 {[%clk 0:00:08]}  Rc3 {[%clk 0:00:12]} 36. Qd1 {[%clk 0:00:06]}  Qf2 {[%clk 0:00:09]} 0-1


[Site "https://www.chess.com"]

[Event "Titled Tuesday Blitz May 31 Early 2022"]
[White "Brodowski, Piotr"]
[Black "Vajda, Levente"]
[WhiteFideId "1124480"]
[BlackFideId "1203975"]
[WhiteElo "2431"]
[BlackElo "2573"]
[Result "1-0"]
[Round "10"]
[TimeControl "180+1"]
[Date "2022.05.31"]
[WhiteClock "0:00:38"]
[BlackClock "0:00:01"]

1. c4 {[%clk 0:03:00]}  Nf6 {[%clk 0:02:55]} 2. Nc3 {[%clk 0:02:59]}  g6 {[%clk 0:02:54]} 3. Nf3 {[%clk 0:02:55]}  Bg7 {[%clk 0:02:54]} 4. g3 {[%clk 0:02:50]}  O-O {[%clk 0:02:54]} 5. Bg2 {[%clk 0:02:51]}  d6 {[%clk 0:02:55]} 6. d4 {[%clk 0:02:51]}  Nbd7 {[%clk 0:02:54]} 7. O-O {[%clk 0:02:51]}  e5 {[%clk 0:02:52]} 8. h3 {[%clk 0:02:52]}  a6 {[%clk 0:02:51]} 9. Be3 {[%clk 0:02:52]}  Re8 {[%clk 0:02:50]} 10. Rc1 {[%clk 0:02:47]}  c6 {[%clk 0:02:46]} 11. Qb3 {[%clk 0:02:43]}  exd4 {[%clk 0:02:38]} 12. Bxd4 {[%clk 0:02:43]}  Nc5 {[%clk 0:02:39]} 13. Qa3 {[%clk 0:02:42]}  Qe7 {[%clk 0:02:22]} 14. Rfd1 {[%clk 0:02:39]}  Be6 {[%clk 0:02:20]} 15. b3 {[%clk 0:02:40]}  Rad8 {[%clk 0:02:19]} 16. Qb2 {[%clk 0:02:40]}  a5 {[%clk 0:02:08]} 17. Kh2 {[%clk 0:02:07]}  Bc8 {[%clk 0:02:04]} 18. Re1 {[%clk 0:01:47]}  Ne6 {[%clk 0:02:00]} 19. Bb6 {[%clk 0:01:47]}  Ne4 {[%clk 0:01:59]} 20. Bxd8 {[%clk 0:01:45]}  Qxd8 {[%clk 0:01:30]} 21. Nd2 {[%clk 0:01:32]}  Nxc3 {[%clk 0:00:58]} 22. Rxc3 {[%clk 0:01:32]}  Nc5 {[%clk 0:00:54]} 23. Qc1 {[%clk 0:01:24]}  Bxc3 {[%clk 0:00:49]} 24. Qxc3 {[%clk 0:01:25]}  a4 {[%clk 0:00:32]} 25. b4 {[%clk 0:01:24]}  Nd7 {[%clk 0:00:25]} 26. Ne4 {[%clk 0:01:24]}  Re6 {[%clk 0:00:25]} 27. Rd1 {[%clk 0:01:22]}  Qe7 {[%clk 0:00:25]} 28. Qd4 {[%clk 0:01:05]}  c5 {[%clk 0:00:11]} 29. bxc5 {[%clk 0:01:02]}  dxc5 {[%clk 0:00:10]} 30. Qd3 {[%clk 0:00:58]}  Kg7 {[%clk 0:00:03]} 31. Nd6 {[%clk 0:00:41]}  Ne5 {[%clk 0:00:03]} 32. Nxc8 {[%clk 0:00:38]}  Nxd3 {[%clk 0:00:01]} 33. Nxe7 {[%clk 0:00:38]} 1-0


[Site "https://www.chess.com"]